bitfinex-derivatives/quotes_ETHF0:USTF0_20250422
["timestamp","ask_amount","ask_price","bid_price","bid_amount"]
[1745288590365,18.80977938,1581.6,1581.5,7.40655527]
[1745288590770,18.6979021,1581.6,1581.5,7.40655527]
[1745288591675,18.8097756,1581.6,1581.5,7.40655527]
[1745288592262,18.80977243,1581.6,1581.5,7.40655527]
[1745288592466,18.80977596,1581.6,1581.5,7.40655527]
[1745288593169,18.80977842,1581.6,1581.5,7.40655527]
[1745288593675,1.26472,1581.5,1581.4,0.00949306]
[1745288593875,7.81442,1581.5,1581.4,0.00949306]
[1745288594260,14.13642,1581.5,1581.4,1.27429306]
[1745288594461,17.1528621,1581.5,1581.4,1.27429306]
[1745288594771,18.4175821,1581.5,1581.4,1.27429306]
[1745288595175,17.1528621,1581.5,1581.4,1.27429306]
[1745288595473,13.9450621,1581.5,1581.4,1.27429306]
[1745288595779,15.2097821,1581.5,1581.4,1.27429306]
[1745288596074,8.8877821,1581.5,1581.4,1.27429306]
[1745288596275,7.6230621,1581.5,1581.4,1.27429306]
[1745288596469,8.8877821,1581.5,1581.4,0.00949306]
[1745288596675,7.6230621,1581.5,1581.4,1.27429306]
[1745288598075,7.6230621,1581.5,1581.4,0.00949306]
[1745288598268,7.6230621,1581.5,1581.4,1.27429306]
[1745288598468,7.6230621,1581.5,1581.4,0.00949306]
[1745288599275,13.9450621,1581.5,1581.4,1.80539306]
[1745288599577,13.9450621,1581.5,1581.4,3.07019306]
[1745288600078,7.6230621,1581.5,1581.4,1.80539306]
[1745288600679,8.8877821,1581.5,1581.4,1.80539306]
[1745288601174,7.6230621,1581.5,1581.4,1.80539306]
[1745288601477,7.6230621,1581.5,1581.4,3.07019306]
[1745288603080,6.0343621,1581.5,1581.4,3.07019306]
[1745288605984,4.2811621,1581.5,1581.4,3.07019306]
[1745288608286,6.0516621,1581.5,1581.4,3.07019306]
[1745288608977,10.5241821,1581.5,1581.4,0.00949306]
[1745288609175,1.26496,1581.2,1581.0,46.7471]
[1745288609386,4.2811621,1581.1,1581.0,46.7471]
[1745288609583,6.0516621,1581.1,1581.0,48.5963]
[1745288609989,4.2811621,1581.1,1581.0,48.5963]
[1745288610287,4.2811621,1581.1,1581.0,53.5963]
[1745288610489,4.2811621,1581.1,1581.0,48.5963]
[1745288614683,6.1360621,1581.1,1581.0,48.5963]
[1745288615190,12.4580621,1581.1,1581.0,48.5963]
[1745288616286,6.1360621,1581.1,1581.0,48.5963]
[1745288616786,4.2811621,1581.1,1581.0,48.5963]
[1745288621889,4.2811621,1581.1,1581.0,43.9143]
[1745288622091,4.2811621,1581.1,1581.0,40.8]
[1745288622092,11.8682021,1581.1,1581.0,40.8]
[1745288622291,15.2940021,1581.1,1581.0,45.477]
[1745288622497,16.9514021,1581.1,1581.0,45.477]
[1745288622894,1.26512,1581.0,1580.9,4.68649306]
[1745288623099,6.32682,1581.0,1580.9,4.68649306]
[1745288623295,11.32682,1581.0,1580.9,0.00949306]
[1745288623492,5.0617,1581.0,1580.9,46.75169306]
[1745288623997,6.32682,1581.0,1580.9,46.75169306]
[1745288624197,12.64882,1581.0,1580.9,46.75169306]
[1745288624503,21.9299821,1581.0,1580.9,45.48649306]
[1745288624701,16.9299821,1581.0,1580.9,46.75169306]
[1745288625101,15.6648621,1581.0,1580.9,46.75169306]
[1745288625298,12.4570621,1581.0,1580.9,46.75169306]
[1745288626000,12.4570621,1581.0,1580.9,48.51019306]
[1745288626201,6.1350621,1581.0,1580.9,48.51019306]
[1745288627104,10.46722728,1581.6,1581.0,1.26512]
[1745288627401,19.56242728,1581.6,1581.5,1.26472]
[1745288627704,21.39062728,1581.6,1581.5,4.677]
[1745288628011,22.65532728,1581.6,1581.5,4.677]
[1745288628212,28.97732728,1581.6,1581.5,4.677]
[1745288628606,18.51959306,1581.6,1581.5,4.677]
[1745288629618,17.25489306,1581.6,1581.5,5.94172]
[1745288629913,18.51953306,1581.6,1581.5,4.677]
[1745288630215,17.25489306,1581.6,1581.5,5.94172]
[1745288630515,18.51953306,1581.6,1581.5,4.677]
[1745288630706,17.25489306,1581.6,1581.5,5.94172]
[1745288636211,10.93289306,1581.6,1581.5,5.94172]
[1745288636417,10.93289306,1581.6,1581.5,7.73302]
[1745288637220,10.93289306,1581.6,1581.5,5.94172]
[1745288638218,17.25489306,1581.6,1581.5,5.94172]
[1745288638416,23.54979563,1581.6,1581.5,5.94172]
[1745288639117,17.22779563,1581.6,1581.5,5.94172]
[1745288639319,6.30439563,1581.6,1581.5,5.94172]
[1745288639512,6.30439563,1581.6,1581.5,12.55542]
[1745288640711,0.8673564,1581.6,1581.5,17.55542]
[1745288640917,6.4e-06,1581.6,1581.5,17.55542]
[1745288642120,6.4e-06,1581.6,1581.5,58.35542]
[1745288642522,0.00949306,1581.7,1581.6,1.26464]
[1745288642713,0.00949306,1581.7,1581.6,3.09614]
[1745288642908,0.00949306,1581.7,1581.6,8.09614]
[1745288643319,0.00949306,1581.7,1581.6,48.89614]
[1745288643615,3.06e-06,1581.7,1581.6,48.89614]
[1745288643822,8.39320343,1582.0,1581.9,1.2644]
[1745288644014,8.39320343,1582.0,1581.9,9.1482]
[1745288644520,8.39320343,1582.0,1581.9,53.2834]
[1745288646018,0.00949306,1582.1,1582.0,1.26432]
[1745288646221,0.00949306,1582.1,1582.0,2.96372]
[1745288646413,0.00949306,1582.1,1582.0,4.53982]
[1745288646609,0.00949306,1582.1,1582.0,45.33982]
[1745288650518,12.25773306,1582.1,1582.0,40.8]
[1745288650714,12.25773306,1582.1,1581.9,4.669]
[1745288650715,1.26432,1582.0,1581.9,4.669]
[1745288650914,6.31302,1582.0,1581.9,4.669]
[1745288651114,17.63502,1582.0,1581.9,45.469]
[1745288651517,17.63502,1582.0,1581.9,46.7334]
[1745288651721,16.3707,1582.0,1581.9,46.7334]
[1745288651914,12.63502,1582.0,1581.9,45.469]
[1745288652116,1.2644,1581.9,1581.8,0.00949306]
[1745288652422,14.17169,1581.9,1581.5,1.26472]
[1745288652624,4.47243,1581.7,1581.5,1.26472]
[1745288652824,1.26472,1581.5,1581.3,1.26485]
[1745288653022,1.26472,1581.5,1581.1,14.2026298]
[1745288653023,7.6999,1581.4,1581.1,12.5721298]
[1745288653223,15.28672,1581.4,1581.2,5.93391]
[1745288653421,1.7159,1581.3,1581.2,1.26491]
[1745288653620,1.7159,1581.3,1581.2,3.10171]
[1745288653918,1.7159,1581.3,1581.1,40.80949306]
[1745288653919,2.98082,1581.3,1581.1,42.07448306]
[1745288654117,8.0379,1581.3,1581.2,1.26496]
[1745288654519,8.0379,1581.3,1581.2,3.10176]
[1745288655225,1.7159,1581.3,1581.2,3.10176]
[1745288655926,5.984,1581.4,1581.3,1.26488]
[1745288656223,7.6842,1581.4,1581.3,2.96458]
[1745288656529,7.6842,1581.4,1581.2,4.45561]
[1745288656719,1.7002,1581.3,1581.2,4.45561]
[1745288656919,1.7002,1581.3,1581.1,46.74346306]
[1745288657224,8.0222,1581.3,1581.1,46.74346306]
[1745288657618,1.7002,1581.2,1581.1,46.74346306]
[1745288658322,0.00949306,1581.3,1581.2,1.26496]
[1745288658521,0.00949306,1581.3,1581.2,2.96466]
[1745288658926,0.00949306,1581.3,1581.2,6.16026]
[1745288659630,1.80149306,1581.3,1581.1,49.95127306]
[1745288659820,5.984,1581.2,1581.1,46.74347306]
[1745288660327,14.098,1581.2,1581.1,46.74347306]
[1745288661231,15.36296,1581.2,1581.1,45.47849306]
[1745288661421,17.2757,1581.2,1581.1,46.74353306]
[1745288662829,3.1626,1581.1,1580.8,4.67]
[1745288663130,4.47307,1580.9,1580.7,1.2653]
[1745288663327,2.93398,1580.8,1580.7,1.2653]
[1745288663629,6.17648,1580.8,1580.7,1.26536]
[1745288663830,6.17648,1580.8,1580.4,1.26556]
[1745288663831,15.8952,1580.8,1580.4,1.26556]
[1745288664016,3.2078,1580.6,1580.5,1.26552]
[1745288664417,4.9206,1580.6,1580.5,1.26552]
[1745288664622,1.7128,1580.6,1580.5,1.26552]
[1745288665935,1.7128,1580.6,1580.5,5.93652]
[1745288666531,1.7128,1580.6,1580.5,1.26552]
[1745288667229,5.984,1580.7,1580.6,1.26544]
[1745288667433,5.984,1580.7,1580.6,3.00304]
[1745288668033,3.1984,1580.8,1580.7,1.26536]
[1745288668232,3.1984,1580.8,1580.6,1.26536]
[1745288668435,3.06189,1580.7,1580.5,1.26548]
[1745288668635,1.7965,1580.6,1580.5,1.26548]
[1745288669327,1.26552,1580.5,1580.4,40.80949306]
[1745288669534,1.5671,1580.5,1580.4,42.07509306]
[1745288669831,3.3636,1580.5,1580.4,42.07509306]
[1745288670834,3.3636,1580.5,1580.4,46.74709306]
[1745288671033,3.3636,1580.5,1580.4,42.07509306]
[1745288671226,1.7965,1580.5,1580.4,43.89419306]
[1745288671426,1.7965,1580.5,1580.4,46.74709306]
[1745288672435,1.7965,1580.5,1580.4,42.07509306]
[1745288673636,7.7805,1580.5,1580.4,42.07509306]
[1745288675730,9.04602,1580.5,1580.4,40.80949306]
[1745288676533,9.04602,1580.5,1580.4,42.07509306]
[1745288676733,9.04602,1580.5,1580.4,40.80949306]
[1745288677237,20.36802,1580.5,1580.4,1e-08]
[1745288677737,20.48000767,1580.5,1580.4,1e-08]
[1745288677933,20.36802,1580.5,1580.4,1e-08]
[1745288678731,15.36802,1580.5,1580.4,1e-08]
[1745288678938,14.1025,1580.5,1580.4,1.26560001]
[1745288679138,7.7805,1580.5,1580.4,1.26560001]
[1745288679333,9.04602,1580.5,1580.4,1e-08]
[1745288680133,9.04602,1580.5,1580.4,1.26560001]
[1745288680327,7.7805,1580.5,1580.4,1.26560001]
[1745288680739,9.04602,1580.5,1580.4,1.26560001]
[1745288680939,9.04602,1580.5,1580.4,1e-08]
[1745288681139,15.36802,1580.5,1580.4,1e-08]
[1745288681635,20.36802,1580.5,1580.4,1e-08]
[1745288682040,15.36802,1580.5,1580.4,1e-08]
[1745288683140,20.36802,1580.5,1580.4,1e-08]
[1745288684341,20.48001182,1580.5,1580.4,1e-08]
[1745288686936,15.48001182,1580.5,1580.4,1e-08]
[1745288687244,7.7805,1580.5,1580.4,1.26560001]
[1745288687440,7.7805,1580.5,1580.4,3.03920001]
[1745288687744,9.04602,1580.5,1580.4,1.26560001]
[1745288688336,9.04602,1580.5,1580.4,3.03920001]
[1745288688542,9.04602,1580.5,1580.4,1.26560001]
[1745288689239,15.36802,1580.5,1580.4,1.26560001]
[1745288689442,14.1025,1580.5,1580.4,1.26560001]
[1745288689641,15.36802,1580.5,1580.4,1e-08]
[1745288690046,15.36802,1580.5,1580.4,1.26560001]
[1745288690244,15.36802,1580.5,1580.4,1e-08]
[1745288691840,14.1025,1580.5,1580.4,1.26560001]
[1745288692148,9.1918,1580.6,1580.5,1.26552]
[1745288692339,9.1918,1580.6,1580.5,4.56102]
[1745288692545,9.1918,1580.6,1580.5,9.56102]
[1745288692748,9.1918,1580.6,1580.5,4.56102]
[1745288694741,9.1918,1580.6,1580.5,9.56102]
[1745288696451,9.1918,1580.6,1580.5,4.56102]
[1745288696652,5.984,1580.6,1580.5,4.56102]
[1745288697152,5.984,1580.7,1580.6,1.26544]
[1745288697457,5.984,1580.7,1580.6,4.67614]
[1745288697753,9.1918,1580.9,1580.6,11.6185]
[1745288697950,3.2078,1580.9,1580.8,1.26528]
[1745288698144,9.5298,1580.9,1580.8,1.26528]
[1745288698345,9.5298,1580.9,1580.8,2.99708]
[1745288701063,10.795,1580.9,1580.8,1.7318]
[1745288701266,12.61193,1580.9,1580.7,5.9333]
[1745288701760,1.7628,1580.8,1580.7,7.7385]
[1745288702165,8.0848,1580.8,1580.7,7.7385]
[1745288702965,14.0688,1580.8,1580.7,7.7385]
[1745288703267,12.306,1580.8,1580.7,7.7385]
[1745288704264,5.984,1580.8,1580.7,7.7385]
[1745288704668,5.984,1580.8,1580.7,6.4732]
[1745288704866,5.984,1580.8,1580.6,2.94428]
[1745288704867,7.24928,1580.8,1580.6,2.94428]
[1745288705165,1.8086,1580.7,1580.6,7.61128]
[1745288705467,1.8086,1580.7,1580.6,5.93238]
[1745288705668,3.4086,1580.7,1580.6,5.93238]
[1745288706068,9.7306,1580.7,1580.6,5.93238]
[1745288706264,9.7306,1580.7,1580.5,3.3242]
[1745288706265,18.9224,1580.7,1580.5,3.3242]
[1745288706474,3.07409,1580.6,1580.4,5.93258001]
[1745288706671,11.0004,1580.5,1580.4,5.93258001]
[1745288706870,12.26592,1580.5,1580.4,5.93258001]
[1745288707175,18.58792,1580.5,1580.4,5.93258001]
[1745288707371,17.3224,1580.5,1580.4,5.93258001]
[1745288708172,7.7926,1580.5,1580.4,7.78818001]
[1745288708472,5.984,1580.5,1580.4,7.78818001]
[1745288709178,7.7432,1580.5,1580.4,7.78818001]
[1745288709472,5.984,1580.8,1580.7,1.26536]
[1745288709666,14.03201533,1580.9,1580.8,1.26528]
[1745288709864,12.27281533,1580.9,1580.8,6.37828]
[1745288711168,18.59481533,1580.9,1580.8,6.37828]
[1745288711375,20.35541533,1580.9,1580.8,6.37828]
[1745288711570,14.0666,1580.9,1580.8,6.37828]
[1745288712979,18.5396,1580.9,1580.7,5.9273]
[1745288713280,1.7606,1580.8,1580.6,9.625]
[1745288713472,3.3772,1580.8,1580.7,1.26536]
[1745288714171,8.0826,1580.8,1580.7,1.26536]
[1745288714369,6.322,1580.8,1580.7,3.00006]
[1745288715075,8.0597,1580.8,1580.7,3.00006]
[1745288715677,8.0597,1580.8,1580.7,1.26536]
[1745288716765,9.6157,1580.8,1580.7,1.26536]
[1745288717170,10.88098,1580.8,1580.6,9.12048]
[1745288717377,1.7817,1580.7,1580.6,9.12048]
[1745288719276,3.04706,1580.7,1580.6,4.662]
[1745288719577,4.68526,1580.7,1580.6,4.662]
[1745288720377,4.68526,1580.7,1580.6,5.92744]
[1745288720676,10.66926,1580.7,1580.6,5.92744]
[1745288721081,9.4039,1580.7,1580.6,5.92744]
[1745288721382,10.66926,1580.7,1580.6,5.92744]
[1745288721884,9.4039,1580.7,1580.6,5.92744]
[1745288723475,5.984,1580.7,1580.6,5.92744]
[1745288724475,7.6947,1580.7,1580.6,5.92744]
[1745288724871,5.984,1580.7,1580.6,5.92744]
[1745288725984,1.26552,1580.5,1580.4,1e-08]
[1745288726180,1.26584,1580.1,1580.0,40.8]
[1745288726380,9.1918,1580.1,1579.8,14.93011431]
[1745288726581,9.4441,1580.0,1579.8,13.09681431]
[1745288726780,1.7876,1579.9,1579.8,14.36285431]
[1745288726980,1.7876,1579.9,1579.8,16.19615431]
[1745288727178,9.3055,1580.0,1579.9,1.266]
[1745288727378,11.10259306,1580.0,1579.9,42.066]
[1745288727579,7.78109306,1580.0,1579.9,43.8993]
[1745288728086,7.78109306,1580.0,1579.9,40.8]
[1745288728285,9.45359306,1580.0,1579.9,42.066]
[1745288729987,10.71951306,1580.0,1579.9,40.8]
[1745288731483,1.266,1579.9,1579.8,4.662]
[1745288731689,7.7571,1579.9,1579.7,1.27559306]
[1745288731889,1.26608,1579.8,1579.7,1.27559306]
[1745288732088,3.01168,1579.8,1579.7,42.07559306]
[1745288732391,15.89488,1579.8,1579.1,3.16661]
[1745288732689,15.89488,1579.8,1578.9,3.2605]
[1745288732690,1.26662,1579.2,1578.9,3.2605]
[1745288732879,9.1918,1579.1,1579.0,1.26667]
[1745288733886,1.26672,1579.0,1578.9,8.43481431]
[1745288734086,4.63412,1579.0,1578.9,8.42555403]
[1745288734483,3.3674,1579.0,1578.9,49.22555403]
[1745288734786,9.1918,1579.1,1579.0,1.26672]
[1745288734988,10.92253972,1579.1,1579.0,1.26672]
[1745288736291,12.18920972,1579.1,1578.9,55.15629403]
[1745288736482,12.18920972,1579.1,1578.9,55.14703375]
[1745288736683,12.18920972,1579.1,1578.9,53.88029375]
[1745288736684,1.26672,1579.0,1578.9,53.88029375]
[1745288736879,8.98145972,1579.0,1578.9,49.21629375]
[1745288737082,15.30345972,1579.0,1578.9,8.41629375]
[1745288737290,20.30345972,1579.0,1578.9,3.07806598]
[1745288738390,1.26696,1578.7,1578.5,1.2671]
[1745288738594,10.89513972,1578.6,1578.5,1.2671]
[1745288739593,9.18253972,1578.6,1578.5,1.2671]
[1745288739790,5.97473972,1578.6,1578.5,1.2671]
[1745288742083,9.18253972,1578.6,1578.5,1.2671]
[1745288744393,3.21729306,1579.2,1579.1,1.26664]
[1745288744594,3.20803278,1579.2,1579.0,4.662]
[1745288744795,3.20803278,1579.2,1579.1,1.26664]
[1745288744996,3.20803278,1579.2,1579.1,42.06664]
[1745288745293,5.00053278,1579.2,1579.1,42.06664]
[1745288746499,3.20803278,1579.2,1579.1,42.06664]
[1745288747000,0.00023278,1579.2,1579.1,42.06664]
[1745288748001,0.00023278,1579.2,1579.1,43.86264]
[1745288748601,0.00023278,1579.2,1579.1,42.596]
[1745288748800,1.68233278,1579.2,1579.1,43.86264]
[1745288749996,7.6570725,1579.2,1579.1,43.86264]
[1745288750502,5.9749725,1579.2,1579.1,43.86264]
[1745288751297,7.8295725,1579.2,1579.1,43.86264]
[1745288751497,1.26664,1579.1,1579.0,0.00946126]
[1745288751700,1.267,1578.7,1578.5,3.08247]
[1745288751894,7.82933972,1578.6,1578.5,3.07320972]
[1745288752199,7.82933972,1578.6,1578.4,4.662]
[1745288752200,1.26712,1578.5,1578.4,4.662]
[1745288752397,11.03713972,1578.5,1578.1,6.2724]
[1745288752596,5.97473972,1578.4,1578.3,1.26728]
[1745288752996,5.97473972,1578.4,1578.3,42.06728]
[1745288755101,5.97473972,1578.4,1578.3,43.80388]
[1745288755806,7.67373972,1578.7,1578.6,1.26704]
[1745288756397,7.67373972,1578.7,1578.6,2.96724]
[1745288756805,7.67373972,1578.7,1578.6,1.7002]
[1745288757008,7.67373972,1578.7,1578.6,2.96724]
[1745288757703,7.67373972,1578.7,1578.6,1.26704]
[1745288757907,7.67373972,1578.7,1578.5,9.24496]
[1745288758104,1.8495,1578.6,1578.5,9.24496]
[1745288758300,3.11654,1578.6,1578.5,4.662]
[1745288758502,1.8495,1578.6,1578.5,5.93012]
[1745288758803,3.11654,1578.6,1578.5,4.663]
[1745288759296,1.8495,1578.6,1578.5,4.663]
[1745288759502,1.8495,1578.6,1578.5,5.93012]
[1745288761596,5.97473972,1578.7,1578.5,4.663]
[1745288761802,5.97473972,1578.7,1578.6,2.96324]
[1745288762210,7.72293972,1578.7,1578.6,2.96324]
[1745288767715,10.93073972,1578.7,1578.3,40.8]
[1745288768012,1.2672,1578.4,1578.3,42.06728]
[1745288768412,2.969,1578.4,1578.3,42.06728]
[1745288768804,1.7018,1578.4,1578.3,42.06728]
[1745288769205,2.969,1578.4,1578.3,40.8]
[1745288769414,1.26728,1578.3,1578.2,4.659]
[1745288769612,1.26749,1578.1,1577.9,0.2006506]
[1745288769807,1.8521,1578.0,1577.9,1.4682506]
[1745288770007,1.8521,1578.0,1577.9,42.2682506]
[1745288770208,10.44988972,1578.3,1578.2,1.26736]
[1745288770516,10.44981972,1578.3,1578.2,1.26736]
[1745288771103,15.50453972,1578.3,1577.9,41.0006506]
[1745288771415,4.47528,1578.1,1577.9,46.9282506]
[1745288771609,4.47528,1578.1,1577.9,45.6606506]
[1745288771610,4.47531,1578.1,1577.9,45.6606506]
[1745288771916,1.7654,1578.0,1577.9,46.9282206]
[1745288772111,9.35492,1578.0,1577.9,45.6606506]
[1745288772307,8.0874,1578.0,1577.9,46.9282506]
[1745288772708,8.0874,1578.0,1577.9,42.2682506]
[1745288772915,15.32965972,1578.0,1577.9,0.2006506]
[1745288773110,42.5131567,1578.0,1577.9,6e-07]
[1745288773303,15.32965972,1578.0,1577.9,6e-07]
[1745288773610,20.32965972,1578.0,1577.9,6e-07]
[1745288773811,15.32965972,1578.0,1577.9,6e-07]
[1745288774605,20.32965972,1578.0,1577.9,6e-07]
[1745288775616,15.32965972,1578.0,1577.9,6e-07]
[1745288776215,20.32965972,1578.0,1577.9,6e-07]
[1745288776617,15.32965972,1578.0,1577.9,6e-07]
[1745288777714,20.32965972,1578.0,1577.9,6e-07]
[1745288778619,15.32965972,1578.0,1577.9,6e-07]
[1745288779513,24.99065972,1578.0,1577.9,6e-07]
[1745288779919,19.99065972,1578.0,1577.9,6e-07]
[1745288780518,15.32965972,1578.0,1577.9,6e-07]
[1745288781310,15.32965972,1578.0,1577.9,1.2676006]
[1745288781715,14.06213972,1578.0,1577.9,1.2676006]
[1745288781916,12.29673972,1578.0,1577.9,1.2676006]
[1745288782514,12.29673972,1578.0,1577.9,7.9506006]
[1745288782715,6.322,1578.0,1577.9,7.9506006]
[1745288783215,5.97473972,1578.1,1578.0,1.26752]
[1745288783522,5.97473972,1578.1,1578.0,2.95052]
[1745288783821,5.97473972,1578.1,1578.0,7.95052]
[1745288784121,9.18253972,1578.3,1578.1,1.26744]
[1745288784321,9.18253972,1578.3,1578.2,3.11426]
[1745288785125,12.29673972,1578.3,1578.2,3.11426]
[1745288785326,17.32453972,1578.3,1578.2,3.11426]
[1745288785823,18.59181972,1578.3,1578.2,1.8469]
[1745288786028,17.32453972,1578.3,1578.2,3.11426]
[1745288786923,14.11673972,1578.3,1578.2,3.11426]
[1745288787324,15.38401972,1578.3,1578.2,3.11426]
[1745288787526,14.11673972,1578.3,1578.2,3.11426]
[1745288788930,12.29673972,1578.3,1578.2,3.11426]
[1745288789225,5.97473972,1578.3,1578.2,3.11426]
[1745288790234,12.29673972,1578.3,1578.2,3.11426]
[1745288791224,13.56401972,1578.3,1578.2,1.8469]
[1745288791424,1.26736,1578.2,1578.1,8.0149]
[1745288791621,1.8518,1578.2,1578.1,1.73]
[1745288791821,15.50453972,1578.3,1578.1,1.73]
[1745288792021,18.62363972,1578.3,1578.1,2.99737]
[1745288792222,1.8518,1578.2,1578.1,2.99737]
[1745288792528,3.11916,1578.2,1578.1,2.99737]
[1745288792731,1.8518,1578.2,1578.1,2.99737]
[1745288793136,8.1738,1578.2,1578.1,2.99737]
[1745288793836,9.44116,1578.2,1578.1,2.99737]
[1745288794027,1.26744,1578.1,1578.0,3.06846]
[1745288794328,1.26752,1578.0,1577.9,6e-07]
[1745288794530,2.89032,1578.0,1577.9,6e-07]
[1745288794831,4.73352,1578.0,1577.9,6e-07]
[1745288795123,11.05552,1578.0,1577.9,6e-07]
[1745288795529,11.05552,1578.0,1577.9,1.2676006]
[1745288796331,11.05552,1578.0,1577.9,6e-07]
[1745288797030,11.05552,1578.0,1577.9,1.2676006]
[1745288797831,14.26332,1578.0,1577.9,1.2676006]
[1745288798830,14.26332,1578.0,1577.9,6e-07]
[1745288799423,14.26332,1578.0,1577.9,1.2676006]
[1745288799720,20.23805972,1578.0,1577.9,1.2676006]
[1745288800119,20.23805972,1578.0,1577.9,6e-07]
[1745288801034,20.23805972,1578.0,1577.9,1.2676006]
[1745288801535,18.61525972,1578.0,1577.9,1.2676006]
[1745288802033,18.61525972,1578.0,1577.9,6e-07]
[1745288802231,18.61525972,1578.0,1577.9,1.2676006]
[1745288803024,18.61525972,1578.0,1577.9,6e-07]
[1745288803224,18.61525972,1578.0,1577.9,1.2676006]
[1745288803625,18.61525972,1578.0,1577.9,6e-07]
[1745288803822,38.87596517,1578.0,1577.9,6e-07]
[1745288804029,6.33864,1577.8,1577.4,1.26795]
[1745288804234,1.26793,1577.5,1577.4,42.547]
[1745288804531,1.26793,1577.5,1577.4,43.81501]
[1745288804830,0.00949306,1577.6,1577.5,1.26793]
[1745288805037,0.00949306,1577.6,1577.5,4.74143]
[1745288805229,0.00949306,1577.6,1577.5,9.74143]
[1745288805622,1e-08,1577.6,1577.5,9.74143]
[1745288805827,5.97473972,1577.9,1577.8,1.26768]
[1745288806229,5.97473972,1577.9,1577.8,6.26768]
[1745288806432,4.15785199,1578.1,1578.0,1.26752]
[1745288806739,4.15785199,1578.1,1578.0,5.92652]
[1745288807128,4.15785199,1578.1,1578.0,48.55392]
[1745288807329,8.40269649,1578.2,1578.1,1.26744]
[1745288807627,8.40269649,1578.2,1578.1,6.49064]
[1745288808941,8.40269649,1578.2,1578.1,47.29064]
[1745288809938,5.80292927,1578.2,1578.1,55.49844]
[1745288812737,10.4591612,1578.3,1578.2,1.26736]
[1745288812738,0.00949306,1578.3,1578.2,1.26736]
[1745288812938,0.00949306,1578.3,1578.2,3.03386]
[1745288813441,0.00949306,1578.3,1578.2,43.83386]
[1745288814339,0.00949306,1578.3,1578.2,48.83386]
[1745288815337,0.00949306,1578.3,1578.2,43.83386]
[1745288818141,6.33149306,1578.3,1578.2,43.83386]
[1745288820440,17.31939306,1578.3,1578.0,5.92645]
[1745288820644,3.06349,1578.2,1578.0,7.66525]
[1745288820844,1.7961,1578.1,1578.0,7.66525]
[1745288821045,1.7961,1578.1,1578.0,48.46525]
[1745288821838,6.322,1578.2,1578.1,1.26744]
[1745288822036,8.1181,1578.2,1578.1,1.26744]
[1745288822241,1.7961,1578.2,1578.1,1.26744]
[1745288823145,8.1181,1578.2,1578.1,1.26744]
[1745288823346,8.1181,1578.2,1578.1,2.97684]
[1745288824247,1.7961,1578.2,1578.1,2.97684]
[1745288825842,19.15634,1578.2,1577.3,3.2078]
[1745288826146,3.2078,1577.7,1577.4,4.658]
[1745288826346,3.0867,1577.6,1577.4,47.2659]
[1745288826547,1.8188,1577.5,1577.4,47.2659]
[1745288826750,1.8188,1577.5,1577.4,48.53391]
[1745288827347,8.1408,1577.5,1577.4,48.53391]
[1745288827846,9.40873,1577.5,1577.4,42.6079]
[1745288828153,12.61653,1577.5,1577.4,45.459]
[1745288828445,9.40873,1577.5,1577.4,45.459]
[1745288828845,12.61653,1577.5,1577.4,45.459]
[1745288829649,12.61653,1577.5,1577.4,46.72701]
[1745288829946,12.61653,1577.5,1577.4,45.459]
[1745288830245,12.61653,1577.5,1577.4,46.72701]
[1745288831042,8.1408,1577.5,1577.4,46.72701]
[1745288831342,9.40879,1577.5,1577.4,5.92401]
[1745288831545,1.26801,1577.4,1577.3,3.06e-06]
[1745288831751,1.26801,1577.4,1576.6,17.0485498]
[1745288831752,1.26857,1576.7,1576.6,10.3889598]
[1745288832049,1.26865,1576.6,1576.5,10.47306545]
[1745288832244,6.322,1576.7,1576.5,10.47306545]
[1745288832551,6.322,1576.7,1576.6,1.26865]
[1745288832845,6.322,1576.7,1576.6,1.8267]
[1745288833051,6.322,1576.7,1576.6,3.09535]
[1745288833745,6.322,1576.7,1576.6,7.75235]
[1745288834052,6.322,1576.7,1576.6,15.96015]
[1745288834239,6.322,1576.7,1576.6,10.96015]
[1745288834653,4.01854715,1576.7,1576.6,15.96015]
[1745288836252,4.01854715,1576.7,1576.6,56.76015]
[1745288837046,4.01854715,1576.7,1576.6,52.10315]
[1745288837252,4.01854715,1576.7,1576.6,56.76115]
[1745288838550,0.00949306,1576.8,1576.6,55.4925]
[1745288838757,3.06e-06,1576.8,1576.7,101.40477]
[1745288838950,4.18744226,1577.2,1577.1,1.26825]
[1745288839145,4.18744226,1577.2,1577.1,9.13405]
[1745288839348,4.18744226,1577.2,1577.1,14.13405]
[1745288839857,4.18744226,1577.2,1577.1,15.74955]
[1745288840246,10.50944226,1577.2,1577.1,15.74955]
[1745288840447,10.50944226,1577.2,1577.1,51.54955]
[1745288841052,10.50944226,1577.2,1577.1,46.89155]
[1745288841254,6.322,1577.2,1577.1,46.89155]
[1745288841454,6.322,1577.2,1577.1,51.54955]
[1745288841650,6.322,1577.2,1577.1,46.89155]
[1745288841845,6.322,1577.2,1577.1,148.24955]
[1745288843756,6.322,1577.2,1577.1,142.3233]
[1745288843958,25.12115255,1577.2,1576.2,3.2078]
[1745288844159,3.2078,1576.7,1576.3,6.3711]
[1745288844360,1.26877,1576.5,1576.4,1.7131]
[1745288844752,1.26877,1576.5,1576.4,4.658]
[1745288845060,1.6853,1576.5,1576.4,5.92681]
[1745288845366,8.0073,1576.5,1576.4,5.92681]
[1745288845560,8.0073,1576.5,1576.4,2.98771]
[1745288845752,8.0073,1576.5,1576.4,7.64571]
[1745288846152,6.322,1576.5,1576.4,4.658]
[1745288846356,8.0073,1576.5,1576.4,5.92681]
[1745288846654,8.0073,1576.5,1576.4,2.98771]
[1745288846856,8.0073,1576.5,1576.4,4.658]
[1745288847056,8.0073,1576.5,1576.4,5.92681]
[1745288847260,6.31250695,1576.5,1576.4,9.13461]
[1745288847447,5.00421695,1576.5,1576.4,17.61971]
[1745288847647,3.499,1577.1,1577.0,1.26833]